bitfinex-derivatives/quotes_BTCF0:USTF0_20250830
["timestamp","ask_amount","ask_price","bid_price","bid_amount"]
[1756526987362,0.002,108570.0,108560.0,2.45475028]
[1756526995566,0.002,108570.0,108560.0,1.61059028]
[1756526995867,0.04489,108570.0,108560.0,1.16422036]
[1756526996072,0.39915692,108570.0,108560.0,2.00822036]
[1756526996263,0.04489,108570.0,108560.0,2.00822036]
[1756526996465,0.39915692,108570.0,108560.0,2.00822036]
[1756526997170,0.04489,108570.0,108560.0,2.00822036]
[1756526997372,0.39915692,108570.0,108560.0,1.16422036]
[1756526997562,0.39915692,108570.0,108560.0,2.00822036]
[1756526998069,0.35626692,108570.0,108560.0,2.45459018]
[1756527000367,0.38031978,108570.0,108560.0,2.45459018]
[1756527000868,0.02605286,108570.0,108560.0,2.45459018]
[1756527006968,0.02605286,108570.0,108560.0,0.90205634]
[1756527007169,0.02605286,108570.0,108560.0,2.00818036]
[1756527007170,0.45288978,108570.0,108560.0,2.00818036]
[1756527007770,0.45288978,108570.0,108560.0,2.36244728]
[1756527008271,0.40860978,108570.0,108560.0,2.36244728]
[1756527008975,0.02605286,108570.0,108560.0,2.45455018]
[1756527010273,0.002,108570.0,108560.0,2.45455018]
[1756527016580,0.002,108570.0,108560.0,1.61059018]
[1756527016780,0.002,108570.0,108560.0,2.45451018]
[1756527026184,0.38455692,108570.0,108560.0,0.80995344]
[1756527026489,0.42883692,108570.0,108560.0,2.00806036]
[1756527026682,0.67883692,108570.0,108560.0,0.80995344]
[1756527026982,0.70287309,108570.0,108560.0,0.79136]
[1756527027181,1.05714001,108570.0,108560.0,0.06976]
[1756527027374,0.70287309,108570.0,108560.0,0.06976]
[1756527029689,0.70287309,108570.0,108560.0,0.02802]
[1756527030388,0.70287309,108570.0,108560.0,0.07369]
[1756527032390,0.07335,108560.0,108550.0,0.43694]
[1756527032683,0.78188384,108560.0,108550.0,0.43694]
[1756527033492,1.62572384,108560.0,108550.0,0.43694]
[1756527033677,1.62572384,108560.0,108550.0,0.07614]
[1756527033880,2.01051752,108560.0,108550.0,0.07614]
[1756527034383,2.01151752,108560.0,108550.0,0.07614]
[1756527035382,1.65071752,108560.0,108550.0,0.03394]
[1756527037990,1.65071752,108560.0,108550.0,0.00444]
[1756527038384,0.94218368,108560.0,108550.0,0.03394]
[1756527038586,1.65071752,108560.0,108550.0,0.03394]
[1756527039391,1.65075752,108560.0,108550.0,0.03394]
[1756527039592,1.65075752,108560.0,108550.0,0.07614]
[1756527040286,1.62676384,108560.0,108550.0,0.07614]
[1756527042794,1.44310887,108560.0,108550.0,0.07614]
[1756527045495,1.55241384,108560.0,108550.0,0.07614]
[1756527047802,1.19814692,108560.0,108550.0,0.07614]
[1756527048112,1.55241384,108560.0,108550.0,0.43694]
[1756527048406,0.3608,108570.0,108550.0,0.43694]
[1756527048606,0.0239638,108570.0,108550.0,0.43694]
[1756527048805,1.55241384,108560.0,108550.0,0.43694]
[1756527049603,0.70853384,108560.0,108550.0,0.43694]
[1756527049804,1.55241384,108560.0,108550.0,0.43694]
[1756527050507,1.57638308,108560.0,108550.0,0.79120692]
[1756527050703,0.37823616,108560.0,108550.0,0.79120692]
[1756527051009,1.19910692,108570.0,108560.0,0.0717]
[1756527051302,1.22207528,108570.0,108560.0,0.42596692]
[1756527051703,0.37823528,108570.0,108560.0,0.42596692]
[1756527052008,1.22207528,108570.0,108560.0,0.78676692]
[1756527052200,1.22407528,108570.0,108560.0,0.78676692]
[1756527054710,1.2240952,108570.0,108560.0,0.78676692]
[1756527055905,0.86982828,108570.0,108560.0,0.78676692]
[1756527056106,1.2240952,108570.0,108560.0,0.78676692]
[1756527057611,0.02598828,108570.0,108560.0,1.14103384]
[1756527057808,0.86978828,108570.0,108560.0,1.39103384]
[1756527058011,1.2240552,108570.0,108560.0,1.39103384]
[1756527058615,0.86978828,108570.0,108560.0,1.39103384]
[1756527058815,1.2240552,108570.0,108560.0,1.39103384]
[1756527059409,1.2240552,108570.0,108560.0,1.14103384]
[1756527060212,0.86978828,108570.0,108560.0,1.14546384]
[1756527060412,0.8458,108570.0,108560.0,1.23756674]
[1756527061714,0.002,108570.0,108560.0,1.23756674]
[1756527062817,0.002,108570.0,108560.0,1.48756674]
[1756527063817,0.002,108570.0,108560.0,2.33128674]
[1756527065910,0.002,108570.0,108560.0,2.33124674]
[1756527067618,0.002,108570.0,108560.0,2.33120674]
[1756527068716,0.002,108570.0,108560.0,1.48756674]
[1756527069018,0.002,108570.0,108560.0,2.33120674]
[1756527069618,0.002,108570.0,108560.0,1.48756674]
[1756527069816,0.002,108570.0,108560.0,2.33116674]
[1756527070723,0.002,108570.0,108560.0,1.6226329]
[1756527070923,0.002,108570.0,108560.0,2.33116674]
[1756527072224,0.002,108570.0,108560.0,2.35005538]
[1756527080227,0.002,108570.0,108560.0,2.34562538]
[1756527081933,0.002,108570.0,108560.0,2.70642538]
[1756527083428,0.002,108570.0,108560.0,1.86282538]
[1756527083631,0.002,108570.0,108560.0,2.70622538]
[1756527084338,0.002,108570.0,108560.0,1.90558864]
[1756527084629,0.002,108570.0,108560.0,2.61400761]
[1756527085530,0.002,108570.0,108560.0,2.70611051]
[1756527086732,0.002,108570.0,108560.0,2.61396761]
[1756527086929,0.002,108570.0,108560.0,2.70607051]
[1756527088128,0.002,108570.0,108560.0,2.70580807]
[1756527088833,0.002,108570.0,108560.0,1.99727423]
[1756527089034,0.002,108570.0,108560.0,2.70580807]
[1756527094430,0.35626692,108570.0,108560.0,1.65505133]
[1756527094739,0.38029812,108570.0,108560.0,0.81181133]
[1756527094932,0.38029812,108570.0,108560.0,1.16607825]
[1756527095128,0.63029829,108570.0,108560.0,0.4325]
[1756527095334,0.99109829,108570.0,108560.0,0.0717]
[1756527095735,0.99109829,108570.0,108560.0,0.0295]
[1756527096437,1.83433829,108570.0,108560.0,0.0295]
[1756527097137,1.47353829,108570.0,108560.0,0.0295]
[1756527097941,1.47353829,108570.0,108550.0,0.40582]
[1756527098132,1.48007137,108570.0,108550.0,0.07299]
[1756527098541,0.70853384,108560.0,108550.0,0.07299]
[1756527098743,0.37829829,108560.0,108550.0,0.42725692]
[1756527099645,0.73256521,108560.0,108550.0,0.07299]
[1756527100441,0.70853384,108560.0,108550.0,0.07299]
[1756527100644,0.70953384,108560.0,108550.0,0.07299]
[1756527101336,0.35512295,108560.0,108550.0,0.07299]
[1756527102041,0.35512295,108560.0,108550.0,0.43379]
[1756527103637,0.35505327,108560.0,108550.0,0.43379]
[1756527104041,0.00093032,108560.0,108550.0,0.43379]
[1756527104244,0.35505327,108560.0,108550.0,0.43379]
[1756527115545,0.35505327,108560.0,108550.0,0.78791295]
[1756527116251,0.00093032,108560.0,108550.0,0.78791295]
[1756527117049,0.00093032,108560.0,108550.0,0.78891295]
[1756527117850,1.19796295,108570.0,108550.0,0.74389295]
[1756527118060,1.22196426,108570.0,108560.0,0.07299]
[1756527118255,0.37812426,108570.0,108560.0,0.07299]
[1756527118446,1.22164426,108570.0,108560.0,0.07299]
[1756527119547,1.22152426,108570.0,108560.0,0.43379]
[1756527122851,0.37812426,108570.0,108560.0,0.43379]
[1756527123050,0.86740131,108570.0,108560.0,0.78791295]
[1756527123252,1.22142611,108570.0,108560.0,0.7878148]
[1756527123457,0.37802611,108570.0,108560.0,0.7878148]
[1756527124858,0.18884499,108570.0,108560.0,0.7878148]
[1756527126263,1.5582248,108580.0,108560.0,0.43379]
[1756527126468,0.3540248,108570.0,108560.0,0.7878148]
[1756527127267,0.3540248,108570.0,108560.0,0.43379]
[1756527127568,0.3540248,108570.0,108560.0,0.7878148]
[1756527133572,0.84336,108580.0,108570.0,0.07188]
[1756527133767,1.5514096,108580.0,108570.0,0.4259048]
[1756527134673,1.5526896,108580.0,108570.0,0.4259048]
[1756527134975,0.7090496,108580.0,108570.0,0.4259048]
[1756527135176,1.5527696,108580.0,108570.0,0.4259048]
[1756527137078,1.57670778,108580.0,108570.0,0.4259048]
[1756527137371,0.02493818,108580.0,108570.0,0.7867048]
[1756527137573,0.86829818,108580.0,108570.0,0.7867048]
[1756527137775,1.22232298,108580.0,108570.0,0.7867048]
[1756527139678,1.22252298,108580.0,108570.0,0.7867048]
[1756527140775,0.37896298,108580.0,108570.0,0.7867048]
[1756527140978,1.22280298,108580.0,108570.0,0.7867048]
[1756527141180,0.86877818,108580.0,108570.0,0.7867048]
[1756527141381,1.22280298,108580.0,108570.0,0.7867048]
[1756527141780,0.86877818,108580.0,108570.0,0.7867048]
[1756527141981,1.22280298,108580.0,108570.0,0.7867048]
[1756527142482,0.37896298,108580.0,108570.0,0.7867048]
[1756527142682,0.86857818,108580.0,108570.0,0.7867048]
[1756527143182,1.22260298,108580.0,108570.0,0.7867048]
[1756527143884,0.37896298,108580.0,108570.0,0.7867048]
[1756527144084,1.22244298,108580.0,108570.0,0.7867048]
[1756527146483,1.22244298,108580.0,108570.0,1.0367048]
[1756527146484,0.86825818,108580.0,108570.0,1.0367048]
[1756527146892,1.22228298,108580.0,108570.0,1.0367048]
[1756527148089,1.22228298,108580.0,108570.0,0.68268]
[1756527148385,1.22228298,108580.0,108570.0,1.0367048]
[1756527149187,1.22128298,108580.0,108570.0,1.0367048]
[1756527149383,1.22128298,108580.0,108570.0,1.0387048]
[1756527149892,1.22128298,108580.0,108570.0,1.0377048]
[1756527150089,1.22128298,108580.0,108570.0,1.0367048]
[1756527150391,1.1973448,108580.0,108570.0,1.0367048]
[1756527150891,1.1973448,108580.0,108570.0,1.0377048]
[1756527151480,1.1973448,108580.0,108570.0,1.0387048]
[1756527152290,1.1973448,108580.0,108570.0,1.0377048]
[1756527152487,1.1973448,108580.0,108570.0,1.0387048]
[1756527153387,1.1973448,108580.0,108570.0,1.0377048]
[1756527154292,1.1973448,108580.0,108570.0,1.0367048]
[1756527156293,0.84332,108580.0,108570.0,1.0367048]
[1756527156493,1.22120249,108580.0,108570.0,1.0367048]
[1756527157489,0.86717769,108580.0,108570.0,1.0367048]
[1756527157694,1.22120249,108580.0,108570.0,1.0367048]
[1756527161397,0.86717769,108580.0,108570.0,1.0367048]
[1756527161599,1.22120249,108580.0,108570.0,1.0454148]
[1756527163104,0.86717769,108580.0,108570.0,1.0454148]
[1756527163403,1.22120249,108580.0,108570.0,1.0454148]
[1756527165603,0.86717769,108580.0,108570.0,1.0454148]
[1756527165800,1.22120249,108580.0,108570.0,1.0454148]
[1756527169103,0.86717769,108580.0,108570.0,1.0454148]
[1756527169305,1.22120249,108580.0,108570.0,1.0454148]
[1756527172907,1.22120249,108580.0,108570.0,0.69139]
[1756527173108,1.22120249,108580.0,108570.0,1.0454148]
[1756527174815,0.86717769,108580.0,108570.0,1.0454148]
[1756527175015,1.22120249,108580.0,108570.0,1.0454148]
[1756527175518,0.86717769,108580.0,108570.0,1.0454148]
[1756527175716,1.22120249,108580.0,108570.0,1.0454148]
[1756527176918,0.86717769,108580.0,108570.0,1.0454148]
[1756527177119,1.22120249,108580.0,108570.0,1.0454148]
[1756527177820,0.86717769,108580.0,108570.0,1.0454148]
[1756527178021,1.22120249,108580.0,108570.0,1.0454148]
[1756527179220,1.22120249,108580.0,108570.0,0.7954148]
[1756527180627,0.86717769,108580.0,108570.0,0.7954148]
[1756527180926,1.22120249,108580.0,108570.0,0.7954148]
[1756527181922,0.86717769,108580.0,108570.0,0.7954148]
[1756527182122,1.22120249,108580.0,108570.0,0.7954148]
[1756527183128,0.86717769,108580.0,108570.0,0.7954148]
[1756527183425,1.22120249,108580.0,108570.0,0.7954148]
[1756527185528,0.37788249,108580.0,108570.0,0.7954148]
[1756527185734,1.22096249,108580.0,108570.0,0.7954148]
[1756527186830,0.86693769,108580.0,108570.0,0.7954148]
[1756527187030,1.22096249,108580.0,108570.0,0.7954148]
[1756527188029,0.86693769,108580.0,108570.0,0.7954148]
[1756527188229,1.22096249,108580.0,108570.0,0.7954148]
[1756527189324,0.86693769,108580.0,108570.0,0.7954148]
[1756527189534,1.22096249,108580.0,108570.0,0.7954148]
[1756527191434,0.86693769,108580.0,108570.0,0.7954148]
[1756527191631,1.22096249,108580.0,108570.0,0.7954148]
[1756527191936,0.86693769,108580.0,108570.0,0.7954148]
[1756527192137,1.22096249,108580.0,108570.0,0.7954148]
[1756527193034,0.86693769,108580.0,108570.0,0.7954148]
[1756527193336,1.22096249,108580.0,108570.0,0.7954148]
[1756527194229,0.02385769,108580.0,108570.0,0.7954148]
[1756527194425,1.22092249,108580.0,108570.0,0.7954148]
[1756527197432,0.86689769,108580.0,108570.0,0.7954148]
[1756527197629,1.22092249,108580.0,108570.0,0.7954148]
[1756527198034,0.86689769,108580.0,108570.0,0.7954148]
[1756527198236,1.22092249,108580.0,108570.0,0.7954148]
[1756527200340,0.86689769,108580.0,108570.0,0.7954148]
[1756527200540,1.22092249,108580.0,108570.0,0.7954148]
[1756527201740,0.86689769,108580.0,108570.0,0.7954148]
[1756527201940,1.22092249,108580.0,108570.0,0.7954148]
[1756527203842,0.86689769,108580.0,108570.0,0.7954148]
[1756527204034,1.22092249,108580.0,108570.0,0.7954148]
[1756527205139,1.22080249,108580.0,108570.0,0.7954148]
[1756527206144,1.22080249,108580.0,108570.0,0.44139]
[1756527206443,1.22080249,108580.0,108570.0,0.7954148]
[1756527208242,0.86677769,108580.0,108570.0,0.7954148]
[1756527208443,1.22080249,108580.0,108570.0,0.7954148]
[1756527212041,0.86677769,108580.0,108570.0,0.7954148]
[1756527212246,1.22080249,108580.0,108570.0,0.7954148]
[1756527214050,0.86677769,108580.0,108570.0,0.7954148]
[1756527214249,1.22080249,108580.0,108570.0,0.7954148]
[1756527217752,1.22080249,108580.0,108570.0,0.7964148]
[1756527218255,1.22080249,108580.0,108570.0,0.7974148]
[1756527218753,1.22080249,108580.0,108570.0,0.44239]
[1756527218957,1.22080249,108580.0,108570.0,0.7964148]
[1756527219153,1.22080249,108580.0,108570.0,0.7954148]
[1756527222151,0.86677769,108580.0,108570.0,0.7954148]
[1756527222352,1.22080249,108580.0,108570.0,0.7954148]
[1756527222854,1.22080249,108580.0,108570.0,0.44139]
[1756527222855,1.57482729,108580.0,108570.0,0.44139]
[1756527223050,1.40102601,108580.0,108570.0,0.03699]
[1756527224752,1.65202601,108580.0,108570.0,0.03699]
[1756527224946,1.65202601,108580.0,108570.0,0.3910148]
[1756527225555,0.9590496,108580.0,108570.0,0.3910148]
[1756527225858,1.8017696,108580.0,108570.0,0.4304248]
[1756527229968,0.06137,108540.0,108520.0,0.08252489]
[1756527230165,0.7863248,108530.0,108520.0,0.46224213]
[1756527230366,0.4323,108530.0,108520.0,0.7337996]
[1756527231172,0.4323,108530.0,108520.0,0.7377996]
[1756527231368,0.4323,108530.0,108520.0,1.5804796]
[1756527231571,0.4323,108530.0,108520.0,1.5854796]
[1756527231772,0.7863248,108530.0,108520.0,1.2314548]
[1756527231971,0.7863248,108530.0,108520.0,1.2708648]
[1756527232378,0.7863248,108530.0,108520.0,1.5208648]
[1756527232575,1.1471248,108530.0,108520.0,0.32416]
[1756527232879,1.1471248,108530.0,108520.0,0.6781848]
[1756527233282,1.17502662,108530.0,108520.0,0.6741848]
[1756527233579,1.24839257,108530.0,108520.0,0.6741848]
[1756527233778,1.24839257,108530.0,108520.0,0.6701848]
[1756527233970,1.24839257,108530.0,108520.0,0.6711848]
[1756527239181,1.24839257,108530.0,108520.0,0.4211848]
[1756527239788,1.24839257,108530.0,108520.0,0.7752096]
[1756527240474,0.89436777,108530.0,108520.0,0.7752096]
[1756527240679,1.24839257,108530.0,108520.0,0.7752096]
[1756527241376,0.89436777,108530.0,108520.0,0.7752096]
[1756527241582,1.24839257,108530.0,108520.0,0.7752096]
[1756527241888,0.89436777,108530.0,108520.0,0.7752096]
[1756527242088,1.24839257,108530.0,108520.0,0.7752096]
[1756527242682,0.89436777,108530.0,108520.0,0.7752096]
[1756527242983,1.24839257,108530.0,108520.0,0.7752096]
[1756527243396,0.89436777,108530.0,108520.0,0.7752096]
[1756527243691,1.24839257,108530.0,108520.0,0.7752096]
[1756527246581,1.24839257,108530.0,108520.0,0.4211848]
[1756527246785,1.24839257,108530.0,108520.0,0.06716]
[1756527246983,1.24839257,108530.0,108520.0,0.90996]
[1756527247186,1.24839257,108530.0,108520.0,1.2639848]
[1756527250194,1.24839257,108530.0,108520.0,0.4211848]
[1756527250394,1.24839257,108530.0,108520.0,1.2639848]
[1756527251395,1.24839257,108530.0,108520.0,0.4211848]
[1756527251595,1.24839257,108530.0,108520.0,1.2639848]
[1756527251796,1.24839257,108530.0,108520.0,0.87051]
[1756527251998,1.24839257,108530.0,108520.0,1.2245348]
[1756527252197,1.24839257,108530.0,108520.0,1.2668048]
[1756527252495,1.24839257,108530.0,108520.0,0.4240448]
[1756527253092,1.05178381,108530.0,108520.0,0.4240448]
[1756527255091,1.06591381,108530.0,108520.0,0.4240448]
[1756527255295,1.06591381,108530.0,108520.0,0.07002]
[1756527255487,1.06591381,108530.0,108520.0,0.4240448]
[1756527258999,1.54783381,108530.0,108520.0,0.4240448]
[1756527259197,0.70511381,108530.0,108520.0,0.4240448]
[1756527259798,0.69098381,108530.0,108520.0,0.4240448]
[1756527260104,0.70511381,108530.0,108520.0,0.4240448]
[1756527261107,0.10126777,108530.0,108520.0,0.7780696]
[1756527261404,1.5960248,108540.0,108530.0,0.07234]
[1756527261604,1.62042339,108540.0,108530.0,0.4263648]
[1756527261798,0.80523069,108540.0,108530.0,0.4263648]
[1756527262802,0.80523069,108540.0,108530.0,0.07234]
[1756527262996,0.80523069,108540.0,108530.0,0.4263648]
[1756527268404,0.80523069,108540.0,108530.0,0.07234]
[1756527268604,0.80523069,108540.0,108530.0,0.4263648]
[1756527270113,1.15925549,108540.0,108530.0,0.4263648]
[1756527270610,0.80523069,108540.0,108530.0,0.4263648]
[1756527272805,1.64783069,108540.0,108530.0,0.4263648]
[1756527273314,0.80523069,108540.0,108530.0,0.4263648]
[1756527273712,1.15925549,108540.0,108530.0,0.4263648]
[1756527273903,1.15925549,108540.0,108530.0,0.4273648]
[1756527274610,1.15925549,108540.0,108530.0,0.4263648]
[1756527275219,1.15925549,108540.0,108530.0,0.4273648]
[1756527275615,0.80523069,108540.0,108530.0,0.4273648]
[1756527275815,0.80523069,108540.0,108530.0,0.4263648]
[1756527277116,1.15925549,108540.0,108530.0,0.4263648]
[1756527277817,1.15925549,108540.0,108530.0,0.07234]
[1756527278016,1.15925549,108540.0,108530.0,0.4263648]
[1756527279411,2.00173549,108540.0,108530.0,0.4263648]
[1756527280313,1.98693549,108540.0,108520.0,0.88791]
[1756527280619,0.7517548,108530.0,108520.0,0.4279248]
[1756527281425,0.7517548,108530.0,108520.0,0.4289248]
[1756527282322,0.7517548,108530.0,108520.0,0.4299248]
[1756527282818,0.7517548,108530.0,108520.0,0.4289248]
[1756527283006,0.7517548,108530.0,108520.0,0.4299248]
[1756527283818,0.7517548,108530.0,108520.0,0.7839496]
[1756527284114,0.4025273,108540.0,108520.0,0.9885196]
[1756527284307,0.3883273,108540.0,108530.0,0.4279248]
[1756527284507,0.7650821,108540.0,108530.0,0.4279248]
[1756527285120,0.7792821,108540.0,108530.0,0.4279248]
[1756527285420,0.7792821,108540.0,108530.0,0.0739]
[1756527285723,0.7792821,108540.0,108530.0,1.2703248]
[1756527287018,0.7792821,108540.0,108530.0,1.2713248]
[1756527287223,0.7792821,108540.0,108530.0,1.2723248]
[1756527289126,0.7792821,108540.0,108530.0,0.4299248]
[1756527289323,0.7792821,108540.0,108530.0,0.4289248]
[1756527289529,0.7792821,108540.0,108530.0,0.4299248]
[1756527291227,0.7792821,108540.0,108530.0,1.2722048]
[1756527294030,0.7792821,108540.0,108530.0,0.4299248]
[1756527294237,1.1333069,108540.0,108530.0,1.2721648]
[1756527294624,1.1333069,108540.0,108530.0,0.4299248]
[1756527295536,1.1333069,108540.0,108530.0,0.0759]
[1756527295720,1.1333069,108540.0,108530.0,0.4299248]
[1756527296422,1.1333069,108540.0,108530.0,0.0759]
[1756527300232,1.9754669,108540.0,108530.0,0.0759]
[1756527300630,1.9754669,108540.0,108530.0,0.03047]
[1756527301034,2.2254669,108540.0,108530.0,0.002]
[1756527301325,2.2254669,108540.0,108530.0,0.03224]
[1756527302135,2.2254669,108540.0,108530.0,0.07352]
[1756527302836,2.2254669,108540.0,108530.0,0.07252]
[1756527305631,2.2254669,108540.0,108530.0,0.07452]
[1756527305834,2.2254669,108540.0,108530.0,0.03224]
[1756527306135,2.2254669,108540.0,108530.0,0.03024]
[1756527306436,2.2254669,108540.0,108530.0,0.07252]
[1756527308429,2.2254669,108540.0,108530.0,0.07352]
[1756527308723,1.5174173,108540.0,108530.0,0.07352]
[1756527309037,2.2254669,108540.0,108530.0,0.07452]
[1756527310032,2.2254669,108540.0,108530.0,0.4285448]
[1756527310033,0.6752573,108540.0,108530.0,0.4285448]
[1756527310329,2.2253469,108540.0,108530.0,0.4285448]
[1756527313837,1.5172973,108540.0,108530.0,0.4285448]
[1756527314039,2.2253469,108540.0,108530.0,0.4285448]
[1756527314430,1.8712821,108540.0,108530.0,0.4285448]
[1756527315637,1.8712821,108540.0,108530.0,0.07452]
[1756527316038,1.8712821,108540.0,108530.0,0.4285448]
[1756527318232,1.5104421,108540.0,108530.0,0.4285448]
[1756527319631,0.6684821,108540.0,108530.0,0.4285448]
[1756527319831,0.6684821,108540.0,108530.0,0.07452]
[1756527319832,1.5104021,108540.0,108530.0,0.07452]
[1756527320037,1.5104021,108540.0,108530.0,0.4285448]
[1756527320538,1.5104021,108540.0,108530.0,0.07452]
[1756527320733,1.5104021,108540.0,108530.0,0.4285448]
[1756527320938,1.8643869,108540.0,108530.0,0.4285448]
[1756527321144,2.2251869,108540.0,108530.0,0.03224]
[1756527324735,2.2251469,108540.0,108530.0,0.03224]
[1756527325736,1.5170973,108540.0,108530.0,0.07452]
[1756527325932,0.4184821,108540.0,108530.0,0.4285448]
[1756527326537,0.0502573,108540.0,108530.0,1.0393448]
[1756527328431,0.0635073,108540.0,108530.0,1.0393448]
[1756527329239,0.0502573,108540.0,108530.0,1.0393448]
[1756527329539,0.0635073,108540.0,108530.0,1.0393448]
[1756527330146,0.0502573,108540.0,108530.0,1.0393448]
[1756527330345,0.0275273,108540.0,108530.0,1.0393448]
[1756527330546,0.3672748,108550.0,108530.0,1.0393448]
[1756527330747,0.3884748,108550.0,108540.0,0.7873448]
[1756527331047,0.3884748,108550.0,108540.0,1.6291048]
[1756527331246,0.3884748,108550.0,108540.0,1.27508]
[1756527331434,0.3884748,108550.0,108540.0,1.6291048]
[1756527332043,0.41263233,108550.0,108540.0,1.6291048]
[1756527332747,0.41263233,108550.0,108540.0,1.6301048]
[1756527333248,0.41263233,108550.0,108540.0,1.6311048]
[1756527334245,0.41263233,108550.0,108540.0,0.43532]
[1756527334550,0.41263233,108550.0,108540.0,1.6310648]
[1756527337552,0.41263233,108550.0,108540.0,0.7893448]
[1756527337851,0.41263233,108550.0,108540.0,1.6310248]
[1756527338046,0.05860753,108550.0,108540.0,1.6310248]
[1756527338239,0.41263233,108550.0,108540.0,1.6310248]
[1756527338846,0.41263233,108550.0,108540.0,0.7893448]
[1756527339145,0.41263233,108550.0,108540.0,1.6310248]
[1756527342956,0.41263233,108550.0,108540.0,1.6309448]
[1756527344260,0.41263233,108550.0,108540.0,1.27692]
[1756527344448,0.41263233,108550.0,108540.0,1.6309448]
[1756527346154,0.39938233,108550.0,108540.0,1.6309448]
[1756527346454,0.37818233,108550.0,108540.0,1.6309448]
[1756527347355,0.3540248,108550.0,108540.0,1.6309448]
[1756527348451,0.3540248,108550.0,108540.0,1.9849696]
[1756527348846,0.7275448,108560.0,108540.0,1.9426896]
[1756527349155,0.77234256,108560.0,108550.0,0.4288848]
[1756527350059,1.14737931,108560.0,108550.0,0.07486]
[1756527354757,1.14737931,108560.0,108550.0,0.03031]
[1756527355055,0.43932971,108560.0,108550.0,0.07486]
[1756527355260,1.14737931,108560.0,108550.0,0.07486]
[1756527355954,0.43932971,108560.0,108550.0,0.07486]
[1756527356154,1.14737931,108560.0,108550.0,0.07486]
[1756527356561,0.43932971,108560.0,108550.0,0.07486]
[1756527356763,1.14737931,108560.0,108550.0,0.07486]
[1756527359063,1.98881931,108560.0,108550.0,0.07486]
[1756527360762,1.98881931,108560.0,108550.0,0.07586]
[1756527361564,1.98881931,108560.0,108550.0,0.07486]
[1756527364661,1.98881931,108560.0,108550.0,0.03031]
[1756527365467,1.98881931,108560.0,108550.0,0.03474]
[1756527368469,1.98881931,108560.0,108550.0,0.07819]
[1756527369371,1.81010648,108560.0,108550.0,0.4322148]
[1756527370072,1.81010648,108560.0,108550.0,0.07819]
[1756527370273,1.81010648,108560.0,108550.0,0.4322148]
[1756527370674,1.81010648,108560.0,108550.0,0.4332148]
[1756527370863,1.83157057,108560.0,108550.0,0.4332148]
[1756527371468,1.83157057,108560.0,108550.0,0.4322148]
[1756527371673,1.83157057,108560.0,108550.0,0.4332148]
[1756527371972,1.83157057,108560.0,108550.0,0.4342148]
[1756527372167,1.47754577,108560.0,108550.0,0.4342148]
[1756527372367,1.83157057,108560.0,108550.0,0.4342148]
[1756527373275,1.83157057,108560.0,108550.0,0.08019]
[1756527375070,1.83157057,108560.0,108550.0,0.03674]
[1756527375274,1.83157057,108560.0,108550.0,0.08019]
[1756527375571,1.83157057,108560.0,108550.0,0.03674]
[1756527375777,1.83157057,108560.0,108550.0,0.08019]
[1756527375978,1.83153057,108560.0,108550.0,0.08019]
[1756527377479,0.99029057,108560.0,108550.0,0.08019]
[1756527377871,1.83149057,108560.0,108550.0,0.4342148]
[1756527378378,0.99029057,108560.0,108550.0,0.4342148]
[1756527378578,1.83149057,108560.0,108550.0,0.4342148]
[1756527379178,1.83149057,108560.0,108550.0,0.08019]
[1756527379479,0.99029057,108560.0,108550.0,0.08019]
[1756527379772,1.83145057,108560.0,108550.0,0.08019]
[1756527380375,1.83145057,108560.0,108550.0,0.4342148]
[1756527381276,0.99029057,108560.0,108550.0,0.08019]
[1756527381484,1.85586603,108560.0,108550.0,0.08019]
[1756527381677,1.01470603,108560.0,108550.0,0.08019]
[1756527381880,1.85582603,108560.0,108550.0,0.08019]
[1756527382074,1.85582603,108560.0,108550.0,0.4342148]
[1756527382277,1.01470603,108560.0,108550.0,0.4342148]
[1756527382478,0.02146409,108560.0,108550.0,1.0450148]
[1756527382678,0.7148248,108570.0,108550.0,1.0015648]
[1756527382877,0.73923859,108570.0,108560.0,0.4259848]
[1756527383082,1.58035859,108570.0,108560.0,0.44461285]
[1756527383484,1.58035859,108570.0,108560.0,0.09058805]
[1756527383685,1.58035859,108570.0,108560.0,0.44461285]
[1756527384794,0.73923859,108570.0,108560.0,0.44461285]
[1756527384982,1.21951859,108570.0,108560.0,0.44461285]
[1756527385185,1.24091844,108570.0,108560.0,0.44461285]
[1756527385793,1.21650465,108570.0,108560.0,0.44904285]
[1756527385994,1.21650465,108570.0,108560.0,0.09501805]
[1756527386195,1.21650465,108570.0,108560.0,0.09601805]
[1756527386398,1.21650465,108570.0,108560.0,0.45004285]
[1756527386892,1.21650465,108570.0,108560.0,0.45104285]
[1756527388187,0.37542465,108570.0,108560.0,0.45104285]
[1756527391595,0.37542465,108570.0,108560.0,0.81184285]
[1756527391899,0.02139985,108570.0,108560.0,0.81184285]
[1756527392092,0.3540248,108570.0,108560.0,0.81184285]
[1756527392493,1.5558248,108580.0,108560.0,0.76839285]
[1756527392691,1.60133677,108580.0,108560.0,0.81380285]
[1756527392897,0.3540248,108570.0,108560.0,0.81380285]
[1756527393502,0.3540248,108570.0,108560.0,0.81280285]
[1756527393802,0.3540248,108570.0,108560.0,0.81380285]
[1756527394100,1.57700635,108580.0,108570.0,0.07376]
[1756527394300,0.40630975,108580.0,108570.0,0.4277848]
[1756527394505,1.60125455,108580.0,108570.0,0.4277848]
[1756527394701,1.57692635,108580.0,108570.0,0.4277848]
[1756527395498,1.22290155,108580.0,108570.0,0.4287848]
[1756527395698,1.57692635,108580.0,108570.0,0.4287848]
[1756527396098,1.57692635,108580.0,108570.0,0.4277848]
[1756527396499,0.02118155,108580.0,108570.0,1.3926096]
[1756527396701,0.3540248,108590.0,108570.0,2.1880796]
[1756527397003,1.0988248,108600.0,108580.0,0.7885848]
[1756527397199,1.0988248,108600.0,108590.0,0.3540248]
[1756527397200,1.16181423,108600.0,108590.0,0.3540248]
[1756527397397,1.16181423,108600.0,108590.0,0.3823748]
[1756527397592,1.16181423,108600.0,108590.0,0.02835]
[1756527397798,1.59599181,108600.0,108580.0,0.4277848]
[1756527398000,0.3608,108590.0,108580.0,0.4277848]
[1756527398604,0.7148248,108590.0,108580.0,0.4277848]
[1756527398806,0.3540248,108590.0,108580.0,0.7885848]
[1756527399300,0.3540248,108590.0,108580.0,0.7895848]
[1756527400009,1.6676734,108600.0,108590.0,0.07376]
[1756527400305,2.04599658,108600.0,108590.0,0.07376]
[1756527400801,1.33794698,108600.0,108590.0,0.02835]
[1756527401001,2.04599658,108600.0,108590.0,0.02835]
[1756527401701,2.04599658,108600.0,108590.0,0.07376]
[1756527402604,2.04599658,108600.0,108590.0,0.02835]
[1756527403004,2.04599658,108600.0,108580.0,0.4277848]
[1756527403206,0.3540248,108590.0,108580.0,0.4277848]
[1756527404302,1.6676734,108600.0,108580.0,0.4277848]
[1756527404503,0.3540248,108590.0,108580.0,0.7895848]
[1756527404903,0.3540248,108590.0,108580.0,1.1436096]